[Event "*** Titled Tuesday Blitz"]
[Site "Chess.com"]
[Date "2020.05.12"]
[Round "1"]
[White "SPEEDSKATER"]
[Black "Andrii_Prydun"]
[Result "1-0"]
[WhiteElo "2767"]
[BlackElo "2405"]
[TimeControl "180+1"]
[EndTime "10:07:21 PDT"]
[Termination "SPEEDSKATER won by checkmate"]

1. d4 {[%clk 0:03:00.9]} 1... d5 {[%clk 0:02:57.6]} 2. c4 {[%clk 0:02:55.1]}
2... c6 {[%clk 0:02:58.5]} 3. Nf3 {[%clk 0:02:52.8]} 3... Nf6 {[%clk 0:02:57.2]}
4. e3 {[%clk 0:02:49.6]} 4... e6 {[%clk 0:02:57.7]} 5. b3 {[%clk 0:02:48.7]}
5... Nbd7 {[%clk 0:02:58.1]} 6. Bb2 {[%clk 0:02:47.3]} 6... Bb4+ {[%clk
0:02:57.3]} 7. Nbd2 {[%clk 0:02:46]} 7... Ne4 {[%clk 0:02:58]} 8. a3 {[%clk
0:02:43]} 8... Bxd2+ {[%clk 0:02:57.8]} 9. Nxd2 {[%clk 0:02:42.8]} 9... Nxd2
{[%clk 0:02:58.5]} 10. Qxd2 {[%clk 0:02:42.4]} 10... Nf6 {[%clk 0:02:59.4]} 11.
Bd3 {[%clk 0:02:41.7]} 11... O-O {[%clk 0:02:59.6]} 12. O-O {[%clk 0:02:40.8]}
12... b6 {[%clk 0:02:59.9]} 13. Rac1 {[%clk 0:02:38.5]} 13... Bb7 {[%clk
0:03:00.3]} 14. Qe2 {[%clk 0:02:38.1]} 14... Re8 {[%clk 0:03:00.1]} 15. a4
{[%clk 0:02:35.8]} 15... a5 {[%clk 0:02:54]} 16. Rc2 {[%clk 0:02:27.4]} 16...
Qe7 {[%clk 0:02:46.2]} 17. Rfc1 {[%clk 0:02:25.1]} 17... Qb4 {[%clk 0:02:42.2]}
18. Bc3 {[%clk 0:01:50]} 18... Qxb3 {[%clk 0:02:27.8]} 19. Rb2 {[%clk 0:01:45]}
19... Qa3 {[%clk 0:02:18.6]} 20. Qc2 {[%clk 0:01:44.5]} 20... Ba6 {[%clk
0:02:08.2]} 21. Rxb6 {[%clk 0:01:34.9]} 21... Bxc4 {[%clk 0:01:59.2]} 22. Bxc4
{[%clk 0:01:28.1]} 22... dxc4 {[%clk 0:02:00.1]} 23. Rxc6 {[%clk 0:01:27.5]}
23... Rac8 {[%clk 0:01:25.3]} 24. Rxc8 {[%clk 0:01:26.9]} 24... Rxc8 {[%clk
0:01:26.2]} 25. Bxa5 {[%clk 0:01:21.6]} 25... Ra8 {[%clk 0:01:05.9]} 26. Be1
{[%clk 0:01:12.5]} 26... Rxa4 {[%clk 0:01:05.3]} 27. e4 {[%clk 0:01:10.4]} 27...
Nxe4 {[%clk 0:01:02.8]} 28. Rb1 {[%clk 0:01:09.7]} 28... f5 {[%clk 0:00:52.8]}
29. Rb8+ {[%clk 0:01:05.2]} 29... Kf7 {[%clk 0:00:53]} 30. Rb7+ {[%clk
0:01:06.1]} 30... Kf8 {[%clk 0:00:47]} 31. Qb1 {[%clk 0:00:55.6]} 31... Qa1
{[%clk 0:00:44.2]} 32. Rb8+ {[%clk 0:00:53.7]} 32... Kf7 {[%clk 0:00:44.2]} 33.
Rb7+ {[%clk 0:00:46.5]} 33... Kg6 {[%clk 0:00:44.5]} 34. f3 {[%clk 0:00:46.5]}
34... Nd6 {[%clk 0:00:39.1]} 35. Rb6 {[%clk 0:00:43]} 35... Qxb1 {[%clk
0:00:37.5]} 36. Rxb1 {[%clk 0:00:43.9]} 36... Ra6 {[%clk 0:00:36.1]} 37. Kf2
{[%clk 0:00:42.6]} 37... Rc6 {[%clk 0:00:35.4]} 38. Ke3 {[%clk 0:00:42.7]} 38...
Nc8 {[%clk 0:00:34.3]} 39. Ba5 {[%clk 0:00:36.6]} 39... Ne7 {[%clk 0:00:34.1]}
40. Kf4 {[%clk 0:00:32.3]} 40... Ra6 {[%clk 0:00:30.6]} 41. Be1 {[%clk
0:00:30.7]} 41... Kf6 {[%clk 0:00:30.1]} 42. Bh4+ {[%clk 0:00:29.1]} 42... Kf7
{[%clk 0:00:30]} 43. Rb7 {[%clk 0:00:28.7]} 43... g5+ {[%clk 0:00:29.6]} 44.
Bxg5 {[%clk 0:00:28.5]} 44... e5+ {[%clk 0:00:27.5]} 45. dxe5 {[%clk 0:00:26.8]}
45... Re6 {[%clk 0:00:27.7]} 46. Rc7 {[%clk 0:00:23.5]} 46... c3 {[%clk
0:00:25.5]} 47. Bxe7 {[%clk 0:00:22.9]} 47... Rxe7 {[%clk 0:00:24.2]} 48. Rxc3
{[%clk 0:00:23.3]} 48... Kg6 {[%clk 0:00:18.7]} 49. Rc6+ {[%clk 0:00:22.8]}
49... Kh5 {[%clk 0:00:18.8]} 50. g4+ {[%clk 0:00:22.7]} 50... fxg4 {[%clk
0:00:18.5]} 51. fxg4+ {[%clk 0:00:23.6]} 51... Kh4 {[%clk 0:00:19.2]} 52. Rh6#
{[%clk 0:00:24.5]} 1-0

[Event "*** Titled Tuesday Blitz"]
[Site "Chess.com"]
[Date "2020.05.12"]
[Round "1"]
[White "chito89"]
[Black "ajian"]
[Result "1-0"]
[WhiteElo "2752"]
[BlackElo "2398"]
[TimeControl "180+1"]
[EndTime "10:07:21 PDT"]
[Termination "chito89 won on time"]

1. d4 {[%clk 0:03:00.9]} 1... Nf6 {[%clk 0:02:57.2]} 2. c4 {[%clk 0:03:00.2]}
2... e6 {[%clk 0:02:57.2]} 3. Nf3 {[%clk 0:02:58.9]} 3... d5 {[%clk 0:02:57]} 4.
g3 {[%clk 0:02:58.2]} 4... dxc4 {[%clk 0:02:56.9]} 5. Bg2 {[%clk 0:02:57.8]}
5... a6 {[%clk 0:02:57]} 6. O-O {[%clk 0:02:57.8]} 6... b5 {[%clk 0:02:56.9]} 7.
Ne5 {[%clk 0:02:55.5]} 7... Nd5 {[%clk 0:02:56.8]} 8. a4 {[%clk 0:02:46.1]} 8...
Bb7 {[%clk 0:02:55.8]} 9. e4 {[%clk 0:02:40.3]} 9... Nf6 {[%clk 0:02:54.4]} 10.
axb5 {[%clk 0:02:37.4]} 10... axb5 {[%clk 0:02:53.3]} 11. Rxa8 {[%clk
0:02:35.7]} 11... Bxa8 {[%clk 0:02:54.2]} 12. Nc3 {[%clk 0:02:35.6]} 12... c6
{[%clk 0:02:49.1]} 13. Be3 {[%clk 0:02:13.5]} 13... Nbd7 {[%clk 0:02:41.2]} 14.
f4 {[%clk 0:02:12.5]} 14... Be7 {[%clk 0:02:27.6]} 15. b3 {[%clk 0:02:06.1]}
15... cxb3 {[%clk 0:02:25]} 16. Qxb3 {[%clk 0:02:04.9]} 16... O-O {[%clk
0:02:13.5]} 17. Bh3 {[%clk 0:01:44.9]} 17... Nxe5 {[%clk 0:01:58.5]} 18. fxe5
{[%clk 0:01:41.1]} 18... Nd7 {[%clk 0:01:57.5]} 19. Ne2 {[%clk 0:00:54.1]} 19...
Nb6 {[%clk 0:01:42.7]} 20. Nf4 {[%clk 0:00:34.1]} 20... Nc4 {[%clk 0:01:42]} 21.
Bf2 {[%clk 0:00:34.6]} 21... Qd7 {[%clk 0:01:20.6]} 22. Qd1 {[%clk 0:00:30.3]}
22... g6 {[%clk 0:00:41]} 23. Qe2 {[%clk 0:00:28.1]} 23... Bb7 {[%clk
0:00:34.6]} 24. Rd1 {[%clk 0:00:27.2]} 24... Qc7 {[%clk 0:00:24.2]} 25. Bxe6
{[%clk 0:00:26]} 25... fxe6 {[%clk 0:00:20.2]} 26. Nxe6 {[%clk 0:00:26.6]} 26...
Qd7 {[%clk 0:00:10.5]} 27. Nxf8 {[%clk 0:00:26.1]} 27... Bxf8 {[%clk 0:00:10.8]}
28. Ra1 {[%clk 0:00:20.5]} 28... Bc8 {[%clk 0:00:07.2]} 29. Ra8 {[%clk
0:00:18.5]} 29... Qb7 {[%clk 0:00:07.4]} 30. Qa2 {[%clk 0:00:18.6]} 30... Kg7
{[%clk 0:00:06.1]} 31. d5 {[%clk 0:00:17.1]} 31... Kh8 {[%clk 0:00:01.7]} 32.
Ra7 {[%clk 0:00:17.2]} 32... Qb8 {[%clk 0:00:01.6]} 33. e6 {[%clk 0:00:17.8]}
33... Qe5 {[%clk 0:00:01.6]} 34. Ra8 {[%clk 0:00:16.4]} 34... Qc7 {[%clk
0:00:01.1]} 35. Qa1+ {[%clk 0:00:15.4]} 35... Bg7 {[%clk 0:00:01.8]} 36. Bd4
{[%clk 0:00:13.2]} 1-0

[Event "*** Titled Tuesday Blitz"]
[Site "Chess.com"]
[Date "2020.05.12"]
[Round "1"]
[White "willc-h99"]
[Black "vizumatv4hoda"]
[Result "0-1"]
[WhiteElo "2386"]
[BlackElo "2734"]
[TimeControl "180+1"]
[EndTime "10:07:21 PDT"]
[Termination "vizumatv4hoda won by resignation"]

1. c4 {[%clk 0:03:00.9]} 1... Nf6 {[%clk 0:02:59.3]} 2. g3 {[%clk 0:03:00.6]}
2... g6 {[%clk 0:02:59.8]} 3. Bg2 {[%clk 0:03:00.6]} 3... Bg7 {[%clk 0:03:00.7]}
4. Nc3 {[%clk 0:03:01]} 4... O-O {[%clk 0:03:01.6]} 5. e4 {[%clk 0:03:01.6]}
5... d6 {[%clk 0:03:00.6]} 6. Nge2 {[%clk 0:03:01.6]} 6... c5 {[%clk 0:03:00.9]}
7. d3 {[%clk 0:03:01.9]} 7... Nc6 {[%clk 0:03:01.1]} 8. O-O {[%clk 0:03:02]}
8... Ne8 {[%clk 0:03:01.3]} 9. Be3 {[%clk 0:03:01.6]} 9... Nc7 {[%clk
0:03:01.7]} 10. d4 {[%clk 0:03:01.5]} 10... cxd4 {[%clk 0:03:02.2]} 11. Nxd4
{[%clk 0:03:01.6]} 11... Ne6 {[%clk 0:03:02.8]} 12. Nde2 {[%clk 0:03:02.2]}
12... Bd7 {[%clk 0:03:00.9]} 13. b3 {[%clk 0:02:54.9]} 13... Rc8 {[%clk
0:03:00.4]} 14. Qd2 {[%clk 0:02:52.9]} 14... Qa5 {[%clk 0:02:56.9]} 15. f4
{[%clk 0:02:42.3]} 15... Nc5 {[%clk 0:02:50.8]} 16. Rab1 {[%clk 0:02:34.1]}
16... Rfd8 {[%clk 0:02:46.4]} 17. b4 {[%clk 0:02:24.4]} 17... Nxb4 {[%clk
0:02:43.1]} 18. Nd5 {[%clk 0:02:24.6]} 18... Nxd5 {[%clk 0:01:41.4]} 19. Qxa5
{[%clk 0:02:23]} 19... Nxe3 {[%clk 0:01:42.3]} 20. Rf3 {[%clk 0:01:58.2]} 20...
Nxc4 {[%clk 0:01:38.5]} 21. Qb4 {[%clk 0:01:31]} 21... Nxe4 {[%clk 0:01:29]} 22.
Rc1 {[%clk 0:01:08]} 22... d5 {[%clk 0:01:24.2]} 23. Rd3 {[%clk 0:00:54.9]}
23... Bf5 {[%clk 0:01:16.9]} 24. Nd4 {[%clk 0:00:49.5]} 24... Nc5 {[%clk
0:01:11.6]} 25. Nxf5 {[%clk 0:00:41]} 25... Nxd3 {[%clk 0:01:05.5]} 26. Nxe7+
{[%clk 0:00:39.7]} 26... Kh8 {[%clk 0:01:05.6]} 27. Qb1 {[%clk 0:00:30.9]} 27...
Bd4+ {[%clk 0:01:00.6]} 28. Kh1 {[%clk 0:00:28.2]} 28... Nf2+ {[%clk 0:00:41.3]}
29. Kg1 {[%clk 0:00:28.1]} 29... Nd2 {[%clk 0:00:30.3]} 30. Rxc8 {[%clk
0:00:27.6]} 30... Rxc8 {[%clk 0:00:29.8]} 31. Qb4 {[%clk 0:00:11.8]} 31... Rc1+
{[%clk 0:00:19.2]} 32. Bf1 {[%clk 0:00:11.5]} 32... Rxf1+ {[%clk 0:00:18.6]} 33.
Kg2 {[%clk 0:00:12]} 33... Be3 {[%clk 0:00:16.7]} 34. Nxd5 {[%clk 0:00:12.2]}
34... Rg1+ {[%clk 0:00:09.9]} 35. Kxg1 {[%clk 0:00:07.2]} 35... Nd3+ {[%clk
0:00:10.4]} 36. Nxe3 {[%clk 0:00:04.7]} 36... Nxb4 {[%clk 0:00:11.3]} 0-1

[Event "*** Titled Tuesday Blitz"]
[Site "Chess.com"]
[Date "2020.05.12"]
[Round "1"]
[White "MoonlighT89"]
[Black "DinaBelenkaya"]
[Result "1-0"]
[WhiteElo "2507"]
[BlackElo "2107"]
[TimeControl "180+1"]
[EndTime "10:07:22 PDT"]
[Termination "MoonlighT89 won on time"]

1. e4 {[%clk 0:02:59]} 1... c6 {[%clk 0:02:59.4]} 2. Nc3 {[%clk 0:02:57.3]} 2...
d5 {[%clk 0:02:52]} 3. Nf3 {[%clk 0:02:54.1]} 3... dxe4 {[%clk 0:02:48.4]} 4.
Nxe4 {[%clk 0:02:53.2]} 4... Nf6 {[%clk 0:02:49.3]} 5. Nc3 {[%clk 0:02:50.5]}
5... Bg4 {[%clk 0:02:45]} 6. h3 {[%clk 0:02:48.5]} 6... Bh5 {[%clk 0:02:41.6]}
7. g4 {[%clk 0:02:44.6]} 7... Bg6 {[%clk 0:02:40.7]} 8. Bg2 {[%clk 0:02:43.6]}
8... e6 {[%clk 0:02:39.7]} 9. Ne5 {[%clk 0:02:43.2]} 9... Nbd7 {[%clk
0:02:38.8]} 10. Nxg6 {[%clk 0:02:42.1]} 10... hxg6 {[%clk 0:02:37.3]} 11. d4
{[%clk 0:02:41.7]} 11... Bd6 {[%clk 0:02:26.8]} 12. Qf3 {[%clk 0:02:35.1]} 12...
Qc7 {[%clk 0:02:23]} 13. Be3 {[%clk 0:02:30.5]} 13... Nd5 {[%clk 0:02:07]} 14.
Ne4 {[%clk 0:02:30.6]} 14... Bf4 {[%clk 0:01:41]} 15. c4 {[%clk 0:02:10.9]}
15... Bxe3 {[%clk 0:00:49.6]} 16. fxe3 {[%clk 0:02:10]} 16... Nb4 {[%clk
0:00:50]} 17. O-O {[%clk 0:02:06.4]} 17... O-O {[%clk 0:00:39]} 18. a3 {[%clk
0:02:02.6]} 18... Na6 {[%clk 0:00:36.8]} 19. b4 {[%clk 0:02:02.6]} 19... Qd8
{[%clk 0:00:28.5]} 20. Nd6 {[%clk 0:01:57.7]} 20... Rb8 {[%clk 0:00:23]} 21.
Rab1 {[%clk 0:01:29.5]} 21... Nc7 {[%clk 0:00:22.5]} 22. a4 {[%clk 0:01:23.7]}
22... e5 {[%clk 0:00:22.6]} 23. b5 {[%clk 0:01:18.8]} 23... cxb5 {[%clk
0:00:19.5]} 24. Nxb7 {[%clk 0:01:15.2]} 24... Qe7 {[%clk 0:00:16]} 25. axb5
{[%clk 0:01:13.2]} 25... Ne6 {[%clk 0:00:12.6]} 26. Na5 {[%clk 0:01:00.8]} 26...
exd4 {[%clk 0:00:12.5]} 27. Nc6 {[%clk 0:01:01]} 27... Qc5 {[%clk 0:00:11.7]}
28. Nxb8 {[%clk 0:01:00.3]} 28... Rxb8 {[%clk 0:00:12.6]} 29. Qxf7+ {[%clk
0:00:59.1]} 29... Kh7 {[%clk 0:00:11.7]} 30. Qxe6 {[%clk 0:00:54.9]} 30... Nf6
{[%clk 0:00:11.4]} 31. exd4 {[%clk 0:00:53.6]} 31... Qxd4+ {[%clk 0:00:10.8]}
32. Kh1 {[%clk 0:00:52.5]} 32... Re8 {[%clk 0:00:11.7]} 33. Qc6 {[%clk
0:00:46.4]} 33... Re3 {[%clk 0:00:10.5]} 34. Rbd1 {[%clk 0:00:38.7]} 34... Qb2
{[%clk 0:00:08]} 35. c5 {[%clk 0:00:35.2]} 35... Qb4 {[%clk 0:00:02.3]} 36. b6
{[%clk 0:00:33.8]} 36... Nxg4 {[%clk 0:00:02]} 37. hxg4 {[%clk 0:00:26.8]} 37...
Qxg4 {[%clk 0:00:02.9]} 38. Qd6 {[%clk 0:00:24.1]} 38... Re5 {[%clk 0:00:01.7]}
39. Qxe5 {[%clk 0:00:23.3]} 1-0

[Event "*** Titled Tuesday Blitz"]
[Site "Chess.com"]
[Date "2020.05.12"]
[Round "1"]
[White "Bulldog167"]
[Black "TigranMukhutdinov"]
[Result "1-0"]
[WhiteElo "2844"]
[BlackElo "2434"]
[TimeControl "180+1"]
[EndTime "10:07:23 PDT"]
[Termination "Bulldog167 won by resignation"]

1. d4 {[%clk 0:03:00]} 1... Nf6 {[%clk 0:02:59.7]} 2. c4 {[%clk 0:03:00.2]} 2...
g6 {[%clk 0:02:59.2]} 3. Nc3 {[%clk 0:03:00.2]} 3... d5 {[%clk 0:02:59.4]} 4.
Nf3 {[%clk 0:02:59.7]} 4... Bg7 {[%clk 0:02:59.3]} 5. Bg5 {[%clk 0:03:00.2]}
5... Ne4 {[%clk 0:02:58.4]} 6. cxd5 {[%clk 0:03:00.2]} 6... Nxg5 {[%clk
0:02:58.5]} 7. Nxg5 {[%clk 0:03:01.1]} 7... e6 {[%clk 0:02:58.9]} 8. Qd2 {[%clk
0:03:00.8]} 8... h6 {[%clk 0:02:54.1]} 9. Nf3 {[%clk 0:03:00.3]} 9... exd5
{[%clk 0:02:54.4]} 10. e3 {[%clk 0:03:00.7]} 10... O-O {[%clk 0:02:54.3]} 11.
Be2 {[%clk 0:03:00.5]} 11... c6 {[%clk 0:02:53.9]} 12. b4 {[%clk 0:03:00.5]}
12... Nd7 {[%clk 0:02:48.6]} 13. O-O {[%clk 0:03:00.2]} 13... Re8 {[%clk
0:02:42.2]} 14. a4 {[%clk 0:03:00.1]} 14... Nf6 {[%clk 0:02:41.2]} 15. Rfc1
{[%clk 0:02:42]} 15... Ne4 {[%clk 0:02:40.1]} 16. Qb2 {[%clk 0:02:41.9]} 16...
a5 {[%clk 0:02:35.7]} 17. b5 {[%clk 0:02:41.5]} 17... c5 {[%clk 0:02:35.9]} 18.
Rd1 {[%clk 0:02:25]} 18... Bg4 {[%clk 0:02:27.6]} 19. Nxe4 {[%clk 0:02:19.5]}
19... dxe4 {[%clk 0:02:26.7]} 20. Ne5 {[%clk 0:02:19.6]} 20... Bxe2 {[%clk
0:02:24.8]} 21. Qxe2 {[%clk 0:02:20.5]} 21... cxd4 {[%clk 0:02:22.9]} 22. exd4
{[%clk 0:02:21.4]} 22... Qd5 {[%clk 0:02:22.5]} 23. Nc4 {[%clk 0:02:01]} 23...
Rad8 {[%clk 0:02:02.8]} 24. Nxa5 {[%clk 0:01:40.4]} 24... Bxd4 {[%clk
0:02:00.5]} 25. Rac1 {[%clk 0:01:40.5]} 25... Rc8 {[%clk 0:01:52]} 26. Nc4
{[%clk 0:01:34.3]} 26... Rcd8 {[%clk 0:01:09.4]} 27. Ne3 {[%clk 0:01:21.8]}
27... Qg5 {[%clk 0:01:08.1]} 28. g3 {[%clk 0:01:20.3]} 28... Bxe3 {[%clk
0:00:59.8]} 29. Qxe3 {[%clk 0:01:21.2]} 29... Qxe3 {[%clk 0:00:58.4]} 30. fxe3
{[%clk 0:01:22.1]} 30... Rd3 {[%clk 0:00:58.7]} 31. Rxd3 {[%clk 0:01:13]} 31...
exd3 {[%clk 0:00:59.6]} 32. Kf2 {[%clk 0:01:13]} 32... Re4 {[%clk 0:00:59.3]}
33. Ra1 {[%clk 0:00:53.2]} 33... Rb4 {[%clk 0:00:59.4]} 34. Ra3 {[%clk
0:00:45.3]} 34... Kg7 {[%clk 0:00:55.2]} 35. Rxd3 {[%clk 0:00:43.5]} 35... Rxa4
{[%clk 0:00:55.3]} 36. Rd7 {[%clk 0:00:44.1]} 36... Ra2+ {[%clk 0:00:54.1]} 37.
Kg1 {[%clk 0:00:43.7]} 37... Re2 {[%clk 0:00:52.7]} 38. Rxb7 {[%clk 0:00:42.4]}
38... Rxe3 {[%clk 0:00:53.1]} 39. Rc7 {[%clk 0:00:41]} 39... Rb3 {[%clk
0:00:52.8]} 40. Rc5 {[%clk 0:00:40.9]} 40... h5 {[%clk 0:00:53.1]} 41. Kg2
{[%clk 0:00:40.3]} 41... f5 {[%clk 0:00:53.5]} 42. h4 {[%clk 0:00:34.5]} 42...
Kf6 {[%clk 0:00:53.1]} 43. Rc6+ {[%clk 0:00:34.6]} 43... Kg7 {[%clk 0:00:52.6]}
44. b6 {[%clk 0:00:35]} 44... Kh6 {[%clk 0:00:52.7]} 45. Kf2 {[%clk 0:00:35.1]}
45... Rb2+ {[%clk 0:00:52.8]} 46. Kf3 {[%clk 0:00:35.5]} 46... Rb3+ {[%clk
0:00:53]} 47. Kf4 {[%clk 0:00:36]} 47... Rb4+ {[%clk 0:00:52.3]} 48. Ke5 {[%clk
0:00:36]} 48... Rb3 {[%clk 0:00:52.4]} 49. Kf6 {[%clk 0:00:21.1]} 49... Rxg3
{[%clk 0:00:48.3]} 50. Rc8 {[%clk 0:00:20.9]} 50... Kh7 {[%clk 0:00:47.3]} 51.
b7 {[%clk 0:00:20.7]} 1-0

[Event "*** Titled Tuesday Blitz"]
[Site "Chess.com"]
[Date "2020.05.12"]
[Round "1"]
[White "Bacyanide"]
[Black "halfnatty"]
[Result "0-1"]
[WhiteElo "2393"]
[BlackElo "2743"]
[TimeControl "180+1"]
[EndTime "10:07:23 PDT"]
[Termination "halfnatty won by checkmate"]

1. d4 {[%clk 0:03:00.9]} 1... Nf6 {[%clk 0:02:58.7]} 2. Nf3 {[%clk 0:03:00.5]}
2... d5 {[%clk 0:02:58.8]} 3. Bf4 {[%clk 0:03:00.2]} 3... e6 {[%clk 0:02:58.7]}
4. e3 {[%clk 0:03:00.5]} 4... c5 {[%clk 0:02:59.2]} 5. Nbd2 {[%clk 0:02:58.7]}
5... Nc6 {[%clk 0:02:59.1]} 6. c3 {[%clk 0:02:57.5]} 6... Be7 {[%clk 0:02:59.4]}
7. Bd3 {[%clk 0:02:55.6]} 7... Nh5 {[%clk 0:02:59.6]} 8. Bg3 {[%clk 0:02:54.7]}
8... O-O {[%clk 0:02:58.3]} 9. Qe2 {[%clk 0:02:53.6]} 9... g6 {[%clk 0:02:53]}
10. Ne5 {[%clk 0:02:37.7]} 10... Nxg3 {[%clk 0:02:51.1]} 11. hxg3 {[%clk
0:02:32.1]} 11... Nxe5 {[%clk 0:02:49.9]} 12. dxe5 {[%clk 0:02:33]} 12... d4
{[%clk 0:02:22.6]} 13. exd4 {[%clk 0:02:08.5]} 13... cxd4 {[%clk 0:02:22.6]} 14.
c4 {[%clk 0:02:08.1]} 14... Bd7 {[%clk 0:01:47.2]} 15. O-O-O {[%clk 0:00:59.2]}
15... a5 {[%clk 0:01:37.2]} 16. Kb1 {[%clk 0:00:47.3]} 16... a4 {[%clk
0:01:36.7]} 17. Nf3 {[%clk 0:00:43.6]} 17... a3 {[%clk 0:01:36.3]} 18. b3 {[%clk
0:00:42.4]} 18... Qa5 {[%clk 0:01:31.6]} 19. Nxd4 {[%clk 0:00:25.9]} 19... Qc3
{[%clk 0:01:31.8]} 20. Be4 {[%clk 0:00:19]} 20... Bc5 {[%clk 0:01:12]} 21. Nf3
{[%clk 0:00:17.1]} 21... Rad8 {[%clk 0:00:34.8]} 22. Rd3 {[%clk 0:00:16.8]}
22... Qa5 {[%clk 0:00:29.5]} 23. Ng5 {[%clk 0:00:16.9]} 23... Be7 {[%clk
0:00:27]} 24. Nxh7 {[%clk 0:00:15.7]} 24... Qxe5 {[%clk 0:00:27.6]} 25. Qc2
{[%clk 0:00:08.1]} 25... Rfe8 {[%clk 0:00:20.9]} 26. Re3 {[%clk 0:00:07.4]}
26... Qg7 {[%clk 0:00:18.1]} 27. g4 {[%clk 0:00:06.2]} 27... Bc6 {[%clk
0:00:15.8]} 28. Bxc6 {[%clk 0:00:05]} 28... bxc6 {[%clk 0:00:16.7]} 29. Reh3
{[%clk 0:00:05.5]} 29... Rd7 {[%clk 0:00:07.4]} 30. g5 {[%clk 0:00:06]} 30...
Red8 {[%clk 0:00:07.4]} 31. Nf6+ {[%clk 0:00:06.6]} 31... Bxf6 {[%clk
0:00:07.8]} 32. gxf6 {[%clk 0:00:07.1]} 32... Qxf6 {[%clk 0:00:08.7]} 33. Rf3
{[%clk 0:00:07.2]} 33... Rd1+ {[%clk 0:00:07.2]} 34. Rxd1 {[%clk 0:00:06.6]}
34... Rxd1+ {[%clk 0:00:08.1]} 35. Qxd1 {[%clk 0:00:06.8]} 35... Qb2# {[%clk
0:00:08.7]} 0-1

[Event "*** Titled Tuesday Blitz"]
[Site "Chess.com"]
[Date "2020.05.12"]
[Round "1"]
[White "Boninknights"]
[Black "IwkooO"]
[Result "1-0"]
[WhiteElo "2236"]
[BlackElo "2538"]
[TimeControl "180+1"]
[EndTime "10:07:23 PDT"]
[Termination "Boninknights won by resignation"]

1. d4 {[%clk 0:02:58.1]} 1... Nf6 {[%clk 0:02:59.7]} 2. Nf3 {[%clk 0:02:56.1]}
2... e6 {[%clk 0:02:59.5]} 3. c4 {[%clk 0:02:55.4]} 3... c5 {[%clk 0:02:58]} 4.
d5 {[%clk 0:02:53.7]} 4... b5 {[%clk 0:02:58.5]} 5. Bg5 {[%clk 0:02:50.4]} 5...
exd5 {[%clk 0:02:55.6]} 6. cxd5 {[%clk 0:02:47.8]} 6... h6 {[%clk 0:02:55.6]} 7.
Bxf6 {[%clk 0:02:45.6]} 7... Qxf6 {[%clk 0:02:56.5]} 8. e4 {[%clk 0:02:41.3]}
8... Qb6 {[%clk 0:02:03.4]} 9. Nbd2 {[%clk 0:02:26.5]} 9... d6 {[%clk
0:01:58.7]} 10. a4 {[%clk 0:02:23.8]} 10... bxa4 {[%clk 0:01:54.5]} 11. Qxa4+
{[%clk 0:02:20.6]} 11... Bd7 {[%clk 0:01:52.8]} 12. Qa3 {[%clk 0:02:16.9]} 12...
Be7 {[%clk 0:01:35.9]} 13. Nc4 {[%clk 0:02:14.3]} 13... Qc7 {[%clk 0:01:36.2]}
14. Bd3 {[%clk 0:02:09.8]} 14... O-O {[%clk 0:01:36.2]} 15. O-O {[%clk
0:02:07.5]} 15... Bg4 {[%clk 0:01:32.1]} 16. Nfd2 {[%clk 0:02:03.4]} 16... Nd7
{[%clk 0:01:31.3]} 17. f4 {[%clk 0:01:58.7]} 17... Bf6 {[%clk 0:01:30]} 18. e5
{[%clk 0:01:56]} 18... dxe5 {[%clk 0:01:26.7]} 19. d6 {[%clk 0:01:55]} 19... Qd8
{[%clk 0:01:20.9]} 20. f5 {[%clk 0:01:51.4]} 20... Nb6 {[%clk 0:00:44.3]} 21. h3
{[%clk 0:01:43.8]} 21... Nxc4 {[%clk 0:00:41.3]} 22. Nxc4 {[%clk 0:01:42.8]}
22... e4 {[%clk 0:00:41]} 23. Bxe4 {[%clk 0:01:27.6]} 23... Be2 {[%clk
0:00:38.6]} 24. Rfc1 {[%clk 0:01:26.2]} 24... Rb8 {[%clk 0:00:34.1]} 25. Bd3
{[%clk 0:01:09.1]} 25... Bd4+ {[%clk 0:00:29.3]} 26. Kh1 {[%clk 0:01:07]} 26...
Bxd3 {[%clk 0:00:23.9]} 27. Qxd3 {[%clk 0:01:05.9]} 27... Qd7 {[%clk 0:00:21.4]}
28. Ra2 {[%clk 0:00:57.5]} 28... Rb7 {[%clk 0:00:21.1]} 29. Qe4 {[%clk
0:00:47.4]} 29... Re8 {[%clk 0:00:20]} 30. Qd5 {[%clk 0:00:45]} 30... Reb8
{[%clk 0:00:16.8]} 31. Re1 {[%clk 0:00:41.5]} 31... Qd8 {[%clk 0:00:14.6]} 32.
b3 {[%clk 0:00:34.5]} 32... Rxb3 {[%clk 0:00:13.8]} 33. Rxa7 {[%clk 0:00:32]}
33... Rb1 {[%clk 0:00:13.9]} 34. Qxf7+ {[%clk 0:00:28.4]} 34... Kh8 {[%clk
0:00:14.3]} 35. Re7 {[%clk 0:00:24.7]} 35... Bf6 {[%clk 0:00:08.8]} 36. Re6
{[%clk 0:00:21.4]} 36... Rxe1+ {[%clk 0:00:08.5]} 37. Rxe1 {[%clk 0:00:19.2]}
37... Qc8 {[%clk 0:00:08]} 38. d7 {[%clk 0:00:16.8]} 38... Qb7 {[%clk
0:00:08.4]} 39. Re8+ {[%clk 0:00:13.8]} 1-0